bitfinex/quotes_BTCUSD_20241117
["timestamp","ask_amount","ask_price","bid_price","bid_amount"]
[1731854230383,0.01027453,90244.0,90243.0,0.011711]
[1731854230589,0.10906255,90258.0,90250.0,0.110803]
[1731854230590,0.12106853,90257.0,90250.0,0.110803]
[1731854230717,0.10906255,90258.0,90251.0,0.110801]
[1731854230718,0.01027453,90256.0,90251.0,0.110801]
[1731854230924,0.01027453,90255.0,90245.0,0.221618]
[1731854231178,0.01027453,90254.0,90250.0,0.110802]
[1731854231355,0.01027453,90253.0,90250.0,0.110802]
[1731854231528,0.01027453,90252.0,90250.0,0.110802]
[1731854231747,0.24039976,90258.0,90250.0,0.110802]
[1731854231748,0.01027453,90251.0,90250.0,0.110802]
[1731854232160,0.01027453,90251.0,90250.0,0.115802]
[1731854232370,0.01027453,90251.0,90250.0,0.110802]
[1731854232579,0.175,90262.0,90252.0,0.005]
[1731854232580,0.01027453,90255.0,90252.0,0.005]
[1731854232846,0.01027453,90254.0,90253.0,0.110799]
[1731854233516,0.01027453,90261.0,90260.0,0.110791]
[1731854233737,0.01027453,90261.0,90260.0,0.115791]
[1731854233930,0.0449502,90273.0,90260.0,0.01]
[1731854233931,0.01027453,90271.0,90260.0,0.01]
[1731854234136,0.0449502,90273.0,90271.0,0.110777]
[1731854234339,0.075,90277.0,90271.0,0.110777]
[1731854234340,0.1766428,90272.0,90271.0,0.110777]
[1731854234545,0.01028205,90272.0,90271.0,0.110777]
[1731854234962,0.01028205,90272.0,90271.0,0.115777]
[1731854235173,0.01028205,90278.0,90277.0,0.11077]
[1731854235384,0.01028205,90278.0,90277.0,0.11577]
[1731854235589,0.0008545,90279.0,90278.0,0.110768]
[1731854235816,0.01113655,90279.0,90278.0,0.115768]
[1731854236265,0.0008545,90279.0,90278.0,0.120768]
[1731854236873,0.0008545,90279.0,90278.0,0.115768]
[1731854237100,0.01113346,90279.0,90278.0,0.120768]
[1731854237304,0.01113346,90279.0,90278.0,0.115768]
[1731854238275,0.01213346,90279.0,90278.0,0.115768]
[1731854239931,0.00713346,90279.0,90278.0,0.115768]
[1731854240132,0.00713346,90279.0,90278.0,0.005]
[1731854240932,0.00713346,90279.0,90278.0,0.115768]
[1731854241781,0.00713346,90279.0,90278.0,0.110768]
[1731854241996,0.00713346,90279.0,90278.0,0.120768]
[1731854242209,0.001,90279.0,90278.0,0.120768]
[1731854243079,0.001,90279.0,90278.0,0.22983055]
[1731854243307,0.001,90279.0,90278.0,0.120768]
[1731854243956,0.16721515,90288.0,90278.0,0.120768]
[1731854243957,0.09021515,90288.0,90287.0,0.115757]
[1731854244161,7e-05,90291.0,90287.0,0.115757]
[1731854244162,7e-05,90291.0,90290.0,0.110754]
[1731854244587,7e-05,90291.0,90290.0,0.115754]
[1731854245003,7e-05,90291.0,90290.0,0.120754]
[1731854245946,0.00107,90291.0,90290.0,0.120754]
[1731854246617,0.00107,90291.0,90290.0,0.01]
[1731854246838,0.00107,90291.0,90264.0,0.02196879]
[1731854246839,0.110759,90286.0,90281.0,0.005]
[1731854247080,0.00107,90291.0,90278.0,0.17136075]
[1731854247081,0.02051592,90285.0,90278.0,0.17136075]
[1731854247343,0.02051592,90284.0,90279.0,0.110767]
[1731854247550,0.110759,90286.0,90278.0,0.17136075]
[1731854247800,0.0205131,90285.0,90277.0,0.01]
[1731854248024,0.0205131,90284.0,90283.0,0.005]
[1731854248233,0.110764,90282.0,90279.0,0.005]
[1731854248438,0.0205131,90281.0,90278.0,0.005]
[1731854248647,0.221517,90287.0,90278.0,0.005]
[1731854248648,0.0205131,90280.0,90279.0,0.005]
[1731854248851,0.0205131,90280.0,90279.0,0.115767]
[1731854249292,0.0205131,90280.0,90278.0,0.005]
[1731854249293,0.0205131,90280.0,90278.0,0.01]
[1731854249496,0.001,90286.0,90278.0,0.01]
[1731854249497,0.11076,90285.0,90279.0,0.115767]
[1731854249704,0.110763,90283.0,90281.0,0.005]
[1731854249913,0.001,90286.0,90282.0,0.005]
[1731854250115,0.110762,90284.0,90279.0,0.005]
[1731854250317,0.02052363,90283.0,90282.0,0.005]
[1731854251276,0.02052983,90283.0,90282.0,0.005]
[1731854251649,0.02052983,90283.0,90282.0,0.115764]
[1731854251803,0.02152983,90283.0,90282.0,0.115764]
[1731854252004,0.03180039,90283.0,90282.0,0.120764]
[1731854252217,0.01127056,90283.0,90282.0,0.120764]
[1731854252376,0.001,90283.0,90282.0,0.120764]
[1731854253867,0.110756,90288.0,90285.0,0.005]
[1731854254084,0.332263,90290.0,90287.0,0.006671]
[1731854254315,0.221499,90294.0,90287.0,0.006671]
[1731854254316,0.03083033,90289.0,90287.0,0.006671]
[1731854254529,0.14158633,90288.0,90287.0,0.005]
[1731854254762,0.03083033,90288.0,90287.0,0.005]
[1731854254971,0.110757,90287.0,90284.0,0.001671]
[1731854255189,0.03083551,90286.0,90283.0,0.006671]
[1731854255417,0.110755,90289.0,90285.0,0.001671]
[1731854255656,0.0308424,90288.0,90285.0,0.001671]
[1731854255902,0.0308424,90288.0,90278.0,0.221536]
[1731854255903,0.11077,90277.0,90276.0,0.005]
[1731854256119,0.221518,90286.0,90279.0,0.16636075]
[1731854256120,0.221523,90284.0,90279.0,0.16636075]
[1731854256349,0.03083864,90283.0,90278.0,0.001671]
[1731854256571,0.03083864,90282.0,90278.0,0.001671]
[1731854256793,0.03083864,90281.0,90278.0,0.001671]
[1731854257043,0.221518,90286.0,90278.0,0.001671]
[1731854257044,0.14160564,90280.0,90278.0,0.001671]
[1731854257278,0.221518,90286.0,90278.0,0.001671]
[1731854257279,0.03083864,90279.0,90278.0,0.001671]
[1731854257505,0.01027948,90279.0,90278.0,0.117439]
[1731854257727,0.13289116,90296.0,90278.0,0.006671]
[1731854257948,0.04592732,90296.0,90290.0,0.110754]
[1731854258189,0.03091016,90291.0,90287.0,0.228186]
[1731854258410,0.01028002,90290.0,90288.0,0.110756]
[1731854258643,0.01027933,90290.0,90287.0,0.005]
[1731854258865,0.01027933,90289.0,90287.0,0.006671]
[1731854259083,0.01027891,90288.0,90287.0,0.006671]
[1731854259309,0.01027891,90288.0,90287.0,0.117428]
[1731854259744,0.001,90290.0,90288.0,0.110756]
[1731854260728,0.001,90290.0,90289.0,0.110755]
[1731854261252,0.04592732,90296.0,90288.0,0.005]
[1731854261462,0.1,90307.0,90296.0,0.005]
[1731854261693,0.1,90307.0,90296.0,0.115746]
[1731854261694,0.04533986,90302.0,90296.0,0.115746]
[1731854262113,0.04533986,90302.0,90296.0,0.110746]
[1731854262791,0.04533986,90302.0,90295.0,0.005]
[1731854262999,0.04533986,90302.0,90296.0,0.110746]
[1731854263663,0.03294866,90301.0,90296.0,0.110746]
[1731854263862,0.03294866,90301.0,90296.0,0.115746]
[1731854264083,0.0018544,90297.0,90296.0,0.115746]
[1731854266052,0.0018544,90297.0,90296.0,0.110746]
[1731854266285,0.0018544,90297.0,90296.0,0.115746]
[1731854267593,0.0018544,90297.0,90296.0,0.2286943]
[1731854267809,0.0018544,90297.0,90296.0,0.22869422]
[1731854268026,0.0018544,90297.0,90296.0,0.27365559]
[1731854268533,0.0008544,90297.0,90296.0,0.22647955]
[1731854268992,0.0018544,90297.0,90296.0,0.22647955]
[1731854270741,0.0008544,90297.0,90296.0,0.22647955]
[1731854270965,0.0018544,90297.0,90296.0,0.22647955]
[1731854271405,0.0018544,90297.0,90296.0,0.117417]
[1731854271618,0.0008544,90297.0,90296.0,0.22647955]
[1731854271820,0.0018544,90297.0,90296.0,0.22647955]
[1731854274046,0.11178598,90313.0,90309.0,0.112401]
[1731854274263,0.0008557,90318.0,90309.0,0.112401]
[1731854274264,0.01028518,90312.0,90309.0,0.006671]
[1731854274461,0.03291314,90317.0,90311.0,0.110728]
[1731854274793,0.110723,90315.0,90310.0,0.110729]
[1731854275006,0.110723,90315.0,90309.0,0.006671]
[1731854275203,0.03291314,90316.0,90309.0,0.006671]
[1731854275204,0.001,90313.0,90311.0,0.110728]
[1731854275412,0.001,90313.0,90312.0,0.110727]
[1731854275614,0.001,90313.0,90312.0,0.115727]
[1731854276664,0.0008557,90318.0,90317.0,0.110721]
[1731854280586,0.0008557,90318.0,90317.0,0.115721]
[1731854283352,0.0008557,90318.0,90317.0,0.117392]
[1731854289042,0.02479161,90333.0,90317.0,0.006671]
[1731854289243,0.1242906,90336.0,90331.0,0.110703]
[1731854289439,0.1242906,90336.0,90325.0,0.001671]
[1731854289440,0.0135926,90336.0,90325.0,0.001671]
[1731854289643,0.110702,90333.0,90325.0,0.001671]
[1731854289871,0.0135926,90336.0,90331.0,0.110703]
[1731854290054,0.0135926,90336.0,90334.0,0.16636075]
[1731854290300,0.0135926,90336.0,90333.0,0.005]
[1731854290301,0.0135926,90336.0,90335.0,0.115699]
[1731854291061,0.0135926,90336.0,90335.0,0.11737]
[1731854292864,0.0135926,90336.0,90332.0,0.001671]
[1731854293086,0.0135926,90336.0,90313.0,0.0067098]
[1731854293087,0.0135926,90336.0,90335.0,0.006671]
[1731854293527,0.0135926,90336.0,90335.0,0.001671]
[1731854293784,0.1242906,90336.0,90335.0,0.001671]
[1731854293974,0.0135926,90336.0,90335.0,0.006671]
[1731854294196,0.0135926,90336.0,90335.0,0.005]
[1731854294413,0.0135926,90336.0,90335.0,0.001671]
[1731854294636,0.0801,90330.0,90327.0,0.16636075]
[1731854294856,0.301511,90330.0,90327.0,0.16636075]
[1731854295096,0.301511,90330.0,90323.0,0.005]
[1731854295313,0.0801,90330.0,90323.0,0.005]
[1731854295546,0.1,90335.0,90326.0,0.16636075]
[1731854295547,0.110703,90332.0,90326.0,0.16636075]
[1731854295789,0.221403,90333.0,90319.0,0.001671]
[1731854296009,0.05802522,90336.0,90313.0,0.16807055]
[1731854296010,0.05802522,90336.0,90333.0,0.005]
[1731854296439,0.00691948,90335.0,90333.0,0.005]
[1731854296666,0.22831948,90334.0,90331.0,0.001671]
[1731854296878,0.00691948,90333.0,90332.0,0.005]
[1731854297096,0.05802522,90336.0,90332.0,0.005]
[1731854297097,0.11761848,90335.0,90332.0,0.005]
[1731854297315,0.05802522,90336.0,90331.0,0.001671]
[1731854297316,0.05802522,90336.0,90333.0,0.005]
[1731854297543,0.22831737,90335.0,90332.0,0.005]
[1731854297757,0.110701,90333.0,90332.0,0.005]
[1731854297988,0.11762037,90333.0,90332.0,0.005]
[1731854299064,0.15055316,90333.0,90332.0,0.005]
[1731854299282,0.110702,90332.0,90331.0,0.00032707]
[1731854299502,0.15055416,90332.0,90331.0,0.00032707]
[1731854299935,0.03985216,90332.0,90331.0,0.00032707]
[1731854300144,0.15055416,90332.0,90331.0,0.00032707]
[1731854300352,0.03985216,90332.0,90331.0,0.00032707]
[1731854301251,0.06043733,90332.0,90331.0,0.00032707]
[1731854301468,0.05351796,90332.0,90331.0,0.00032707]
[1731854302515,0.05351796,90332.0,90331.0,0.11103007]
[1731854302952,0.02058517,90332.0,90331.0,0.22009262]
[1731854303967,0.0135926,90336.0,90331.0,0.22009262]
[1731854304175,0.10336961,90352.0,90345.0,0.110685]
[1731854304375,0.14796312,90352.0,90345.0,0.110685]
[1731854304587,0.04459351,90352.0,90342.0,0.00032707]
[1731854304758,0.04459351,90352.0,90347.0,0.110683]
[1731854305091,0.1,90356.0,90347.0,0.110683]
[1731854305327,0.110676,90354.0,90347.0,0.110683]
[1731854305531,0.210673,90356.0,90349.0,0.110681]
[1731854305742,0.210673,90356.0,90345.0,0.221373]
[1731854305743,0.1,90356.0,90348.0,0.110682]
[1731854305965,0.110676,90354.0,90347.0,0.110684]
[1731854306172,0.1447374,90357.0,90349.0,0.110681]
[1731854306363,0.023,90355.0,90348.0,0.110683]
[1731854306645,0.023,90356.0,90348.0,0.110683]
[1731854306843,0.023,90353.0,90348.0,0.110683]
[1731854307276,0.023,90356.0,90343.0,0.00032707]
[1731854307277,0.12149713,90356.0,90343.0,0.00032707]
[1731854307493,0.0447374,90357.0,90343.0,0.00032707]
[1731854307494,0.023,90352.0,90343.0,0.00032707]
[1731854307704,0.110676,90354.0,90347.0,0.110683]
[1731854307921,0.023,90353.0,90347.0,0.110683]
[1731854308617,0.09849713,90356.0,90343.0,0.00032707]
[1731854308618,0.023,90355.0,90343.0,0.00032707]
[1731854308820,0.023,90345.0,90343.0,0.00032707]
[1731854309024,0.023,90345.0,90343.0,0.11101507]
[1731854309274,0.023,90349.0,90343.0,0.11101507]
[1731854309485,0.023,90347.0,90343.0,0.00032707]
[1731854309720,0.110688,90344.0,90343.0,0.00032707]
[1731854309930,0.023,90344.0,90343.0,0.00032707]
[1731854310168,0.133689,90343.0,90342.0,0.00032707]
[1731854310633,0.221368,90347.0,90342.0,0.00032707]
[1731854310634,0.023,90344.0,90342.0,0.00032707]
[1731854310872,0.133688,90344.0,90343.0,0.00032707]
[1731854311126,0.09880215,90350.0,90331.0,0.00032707]
[1731854311318,0.133699,90335.0,90334.0,0.16636075]
[1731854311744,0.2078647,90344.0,90323.0,0.16807215]
[1731854311745,0.023,90336.0,90328.0,0.00032707]
[1731854312000,0.10991825,90344.0,90327.0,0.00032707]
[1731854312001,0.023,90329.0,90327.0,0.00032707]
[1731854312216,0.10991825,90344.0,90324.0,0.16636075]
[1731854312217,0.023,90328.0,90324.0,0.16636075]
[1731854312633,0.023,90328.0,90323.0,0.00203847]
[1731854312634,0.023,90325.0,90323.0,0.00203847]
[1731854312838,0.244415,90328.0,90323.0,0.00203847]
[1731854312839,0.023,90328.0,90327.0,0.00032707]
[1731854313245,0.133707,90328.0,90327.0,0.00032707]
[1731854313410,0.133707,90328.0,90323.0,0.0017114]
[1731854313411,0.023,90326.0,90323.0,0.0017114]
[1731854313626,0.133712,90324.0,90323.0,0.0017114]
[1731854314218,0.16667317,90324.0,90323.0,0.0017114]
[1731854315819,0.03296117,90324.0,90323.0,0.1124244]
[1731854316259,0.05355749,90324.0,90323.0,0.1124244]
[1731854316696,0.06047739,90324.0,90323.0,0.1124244]
[1731854316897,0.06047739,90324.0,90323.0,0.0017114]
[1731854317098,0.08347739,90324.0,90323.0,0.1124244]
[1731854317526,0.04359632,90324.0,90323.0,0.1124244]
[1731854318584,0.02059632,90324.0,90323.0,0.1124244]
[1731854318792,0.023,90335.0,90323.0,0.00203847]
[1731854319000,0.023,90335.0,90334.0,0.00032707]
[1731854319208,0.04393183,90339.0,90334.0,0.00032707]
[1731854319209,0.12122353,90339.0,90334.0,0.00032707]
[1731854319412,0.110691,90341.0,90335.0,0.00032707]
[1731854319615,0.221381,90342.0,90335.0,0.00032707]
[1731854319827,0.221383,90341.0,90335.0,0.00032707]
[1731854320033,0.221383,90341.0,90323.0,0.0017114]
[1731854320034,0.221416,90328.0,90323.0,0.0017114]
[1731854320245,0.03295551,90340.0,90323.0,0.0017114]
[1731854320246,0.110712,90324.0,90323.0,0.0017114]
[1731854320476,0.32022062,90335.0,90323.0,0.0017114]
[1731854320477,0.221407,90331.0,90323.0,0.0017114]
[1731854320703,0.110711,90325.0,90324.0,0.00032707]
[1731854320957,0.110712,90324.0,90323.0,0.0017114]
[1731854324580,0.15530497,90324.0,90323.0,0.0017114]
[1731854325286,0.04459297,90324.0,90323.0,0.0017114]
[1731854325488,0.15530497,90324.0,90323.0,0.0017114]
[1731854325701,0.110712,90324.0,90323.0,0.0017114]
[1731854327205,0.023,90327.0,90323.0,0.0017114]
[1731854327206,0.11071,90326.0,90323.0,0.0017114]
[1731854327422,0.110712,90324.0,90323.0,0.0017114]
[1731854330053,0.133712,90324.0,90323.0,0.0017114]
[1731854331415,0.15431727,90324.0,90323.0,0.0017114]
[1731854331631,0.18728573,90324.0,90323.0,0.0017114]
[1731854332317,0.02060527,90324.0,90323.0,0.0017114]
[1731854333195,0.02060527,90324.0,90323.0,0.1124244]
[1731854333420,0.09894189,90334.0,90323.0,0.00203847]
[1731854333662,0.023,90332.0,90326.0,0.00032707]
[1731854333903,0.02060666,90331.0,90330.0,0.110704]
[1731854334124,0.10030566,90335.0,90330.0,0.110704]
[1731854334342,0.045254,90336.0,90328.0,0.00032707]
[1731854334565,0.045254,90336.0,90332.0,0.110701]
[1731854334795,0.0103053,90335.0,90330.0,0.22141]
[1731854335039,0.09894189,90340.0,90332.0,0.110701]
[1731854335040,0.0103053,90334.0,90332.0,0.110701]
[1731854335265,0.0103053,90333.0,90332.0,0.110701]
[1731854337746,0.0008556,90339.0,90328.0,0.00032707]
[1731854337978,0.0008556,90339.0,90323.0,0.0017114]
[1731854337979,0.01030996,90338.0,90331.0,0.00032707]
[1731854338205,0.0008556,90339.0,90331.0,0.00032707]
[1731854338425,0.0008556,90339.0,90338.0,0.110695]
[1731854338644,0.0008556,90339.0,90338.0,0.11102207]
[1731854338645,0.01116765,90339.0,90338.0,0.11102207]
[1731854339534,0.01116765,90339.0,90338.0,0.00032707]
[1731854339754,0.01116765,90339.0,90325.0,0.221421]
[1731854339755,0.0808,90338.0,90328.0,0.00032707]
[1731854340009,0.110705,90330.0,90328.0,0.00032707]
[1731854340235,0.01031205,90329.0,90324.0,0.00032707]
[1731854340457,0.1797738,90338.0,90323.0,0.0017114]
[1731854340458,0.110709,90327.0,90326.0,0.00032707]
[1731854340679,0.12102105,90327.0,90326.0,0.00032707]
[1731854340908,0.12102105,90327.0,90324.0,0.00032707]
[1731854341143,0.22141,90331.0,90324.0,0.00032707]
[1731854341364,0.11071,90326.0,90325.0,0.00032707]
[1731854341603,0.13753381,90326.0,90324.0,0.00032707]
[1731854341836,0.110707,90328.0,90325.0,0.00032707]
[1731854342048,0.110707,90328.0,90327.0,0.00032707]
[1731854342231,0.110711,90325.0,90324.0,0.00032707]
[1731854342447,0.110709,90327.0,90325.0,0.00032707]
[1731854342659,0.04580096,90330.0,90328.0,0.110707]
[1731854342910,0.0989738,90335.0,90328.0,0.00032707]
[1731854343122,0.05983107,90334.0,90333.0,0.110701]
[1731854343852,0.02682082,90334.0,90333.0,0.110701]
[1731854344074,0.0008556,90339.0,90328.0,0.00032707]
[1731854344296,0.0008556,90339.0,90334.0,0.110699]
[1731854344525,0.0008556,90339.0,90330.0,0.22141]
[1731854344753,0.0008556,90339.0,90323.0,0.0017114]
[1731854344972,0.2096748,90333.0,90329.0,0.16636075]
[1731854345205,0.110705,90330.0,90324.0,0.11103907]
[1731854345690,0.110703,90332.0,90324.0,0.11103807]
[1731854345908,0.110707,90329.0,90324.0,0.00032707]
[1731854346138,0.02063244,90328.0,90324.0,0.00032707]
[1731854346349,0.02063244,90327.0,90324.0,0.00032707]
[1731854346575,0.02063244,90326.0,90324.0,0.00032707]
[1731854346803,0.02040044,90325.0,90324.0,0.00032707]
[1731854348738,0.02040044,90325.0,90324.0,0.11103907]
[1731854349203,0.0008556,90339.0,90333.0,0.110701]
[1731854349204,0.14932263,90339.0,90333.0,0.110701]
[1731854349446,0.14932263,90339.0,90334.0,0.00032707]
[1731854349447,0.0008556,90339.0,90334.0,0.00032707]
[1731854349663,0.0008556,90339.0,90335.0,0.110698]
[1731854349889,0.0008556,90339.0,90338.0,0.110695]
[1731854351500,0.0008556,90339.0,90337.0,0.00032707]
[1731854351902,0.0008556,90339.0,90338.0,0.110695]
[1731854353015,0.0008556,90339.0,90337.0,0.00032707]
[1731854353264,0.0008556,90339.0,90338.0,0.110695]
[1731854353905,0.0008556,90339.0,90338.0,0.11102207]
[1731854355841,0.0008556,90339.0,90338.0,0.22008462]
[1731854356071,0.0008556,90339.0,90338.0,0.22229832]
[1731854357989,0.0008556,90339.0,90338.0,0.11102207]
[1731854358637,0.0008556,90339.0,90338.0,0.00032707]
[1731854359350,0.04074472,90339.0,90338.0,0.00032707]
[1731854359566,0.04074472,90339.0,90336.0,0.00032707]
[1731854359784,0.03382693,90339.0,90338.0,0.00032707]
[1731854359993,0.0407392,90339.0,90338.0,0.00032707]
[1731854360224,0.0407392,90339.0,90336.0,0.00032707]
[1731854360500,0.0008556,90339.0,90338.0,0.00032707]
[1731854360742,0.0008556,90339.0,90337.0,0.00032707]
[1731854360743,0.00691876,90338.0,90337.0,0.00032707]
[1731854360990,0.03382538,90339.0,90338.0,0.00032707]
[1731854360991,0.0008556,90339.0,90338.0,0.00032707]
[1731854361226,0.05442437,90339.0,90338.0,0.00032707]
[1731854361452,0.05442437,90339.0,90338.0,0.11102207]
[1731854361696,0.05442437,90339.0,90338.0,0.110695]
[1731854361913,0.05442437,90339.0,90338.0,0.00032707]
[1731854362344,0.05442437,90339.0,90338.0,0.11102207]
[1731854363457,0.0008556,90339.0,90338.0,0.11102207]
[1731854363674,0.05444919,90339.0,90338.0,0.11102207]
[1731854364110,0.04498996,90342.0,90338.0,0.11102207]
[1731854364111,0.02243915,90342.0,90338.0,0.11102207]
[1731854364355,0.1115437,90344.0,90338.0,0.11102207]
[1731854364585,0.15557238,90344.0,90338.0,0.11102207]
[1731854364814,0.110689,90343.0,90342.0,0.00032707]
[1731854365027,0.15557338,90344.0,90342.0,0.00032707]
[1731854365498,0.10906255,90343.0,90342.0,0.00032707]
[1731854365744,0.10906255,90343.0,90321.0,0.00032707]
[1731854365745,0.11071,90326.0,90321.0,0.00032707]
[1731854367555,0.11071,90326.0,90318.0,0.00032707]
[1731854367774,0.19341,90326.0,90318.0,0.00032707]
[1731854369611,0.19341,90326.0,90313.0,0.0017098]
[1731854369612,0.19341,90326.0,90319.0,0.00032707]
[1731854370261,0.23906361,90326.0,90319.0,0.00032707]
[1731854370503,0.09883766,90332.0,90323.0,0.00203847]
[1731854370741,0.19770762,90338.0,90323.0,0.00203847]
[1731854370742,0.09883766,90340.0,90331.0,0.00032707]
[1731854370957,0.0835557,90344.0,90331.0,0.00032707]
[1731854370958,0.18239336,90344.0,90331.0,0.00032707]
[1731854371198,0.110691,90341.0,90331.0,0.11103007]
[1731854371428,0.0835557,90344.0,90323.0,0.17028619]
[1731854371429,0.0835557,90344.0,90323.0,0.00203847]
[1731854371665,0.20790021,90343.0,90334.0,0.16636075]
[1731854371891,0.22800649,90344.0,90331.0,0.00032707]
[1731854372141,0.09883766,90343.0,90331.0,0.00032707]
[1731854372369,0.1107,90334.0,90331.0,0.00032707]
[1731854372633,0.12916883,90344.0,90331.0,0.00032707]
[1731854372634,0.09883766,90343.0,90331.0,0.00032707]
[1731854372857,0.12916883,90344.0,90333.0,0.1107]
[1731854372858,0.110692,90340.0,90333.0,0.1107]
[1731854373088,0.12916883,90344.0,90332.0,0.221405]
[1731854373346,0.04646883,90344.0,90332.0,0.221405]
[1731854373583,0.04646883,90344.0,90331.0,0.00032707]
[1731854373584,0.04646883,90344.0,90336.0,0.110697]
[1731854373806,0.110689,90343.0,90336.0,0.110697]
[1731854374030,0.0008557,90339.0,90336.0,0.110697]
[1731854374265,0.03295355,90338.0,90336.0,0.110697]
[1731854374688,0.03295355,90338.0,90334.0,0.110699]
[1731854375118,0.03295355,90338.0,90333.0,0.221403]
[1731854375119,0.03295355,90338.0,90337.0,0.110696]
[1731854375342,0.0008557,90339.0,90332.0,0.00032707]
[1731854375343,0.0008557,90339.0,90338.0,0.110695]
[1731854376007,0.0008557,90339.0,90338.0,0.11102207]
[1731854376220,0.02145504,90339.0,90338.0,0.11102207]
[1731854376665,0.0008557,90339.0,90338.0,0.22008462]
[1731854378972,0.02145409,90339.0,90338.0,0.22008462]
[1731854379179,0.03295355,90349.0,90346.0,0.00032707]
[1731854379407,0.110684,90348.0,90347.0,0.00032707]
[1731854379845,0.221363,90349.0,90347.0,0.00032707]
[1731854380061,0.110684,90347.0,90346.0,0.00032707]
[1731854380300,0.110684,90347.0,90345.0,0.00032707]
[1731854380519,0.332037,90351.0,90346.0,0.00032707]
[1731854380730,0.0008555,90352.0,90347.0,0.00032707]
[1731854380731,0.110683,90348.0,90347.0,0.00032707]
[1731854382087,0.110684,90347.0,90346.0,0.00032707]
[1731854382992,0.332044,90349.0,90347.0,0.00032707]
[1731854383231,0.110684,90347.0,90346.0,0.00032707]
[1731854385918,0.110683,90348.0,90347.0,0.00032707]
[1731854387605,0.110683,90348.0,90344.0,0.00032707]
[1731854387828,0.110683,90348.0,90347.0,0.00032707]
[1731854388308,0.0008555,90352.0,90347.0,0.00032707]
[1731854388309,0.03380905,90352.0,90347.0,0.00032707]
[1731854388537,0.03380905,90352.0,90345.0,0.00032707]
[1731854388538,0.03295355,90351.0,90345.0,0.00032707]
[1731854388774,0.110685,90346.0,90345.0,0.00032707]
[1731854389220,0.110685,90346.0,90340.0,0.110692]
[1731854389221,0.110685,90346.0,90343.0,0.00032707]
[1731854389468,0.110685,90346.0,90333.0,0.221401]
[1731854389469,0.0329592,90345.0,90325.0,0.00203847]
[1731854389686,0.110697,90336.0,90335.0,0.16636075]
[1731854389907,0.221392,90338.0,90330.0,0.00032707]
[1731854389908,0.110702,90332.0,90330.0,0.00032707]
[1731854390352,0.110702,90332.0,90329.0,0.00032707]
[1731854390576,0.09888358,90340.0,90325.0,0.0017114]
[1731854390577,0.0329592,90337.0,90331.0,0.00203827]
[1731854390791,0.0477,90353.0,90339.0,0.00032707]
[1731854390792,0.0329592,90343.0,90339.0,0.00032707]
[1731854391000,0.0329592,90347.0,90342.0,0.11069]
[1731854391230,0.0535579,90346.0,90342.0,0.11069]
[1731854391469,0.0535579,90345.0,90342.0,0.11069]
[1731854391716,0.04476588,90352.0,90343.0,0.110689]
[1731854391717,0.0205987,90344.0,90343.0,0.110689]
[1731854391967,0.0205987,90344.0,90343.0,0.11101607]
[1731854392397,0.0008555,90352.0,90348.0,0.221365]
[1731854392398,0.04617321,90352.0,90348.0,0.221365]
[1731854392635,0.04617321,90352.0,90340.0,0.221385]
[1731854392636,0.04617321,90352.0,90351.0,0.110679]
[1731854392886,0.02145479,90352.0,90350.0,0.11068]
[1731854393123,0.02059929,90351.0,90348.0,0.110682]
[1731854393357,0.02059929,90350.0,90349.0,0.110681]
[1731854393817,0.05355849,90350.0,90349.0,0.110681]
[1731854394033,0.09888358,90353.0,90339.0,0.00032707]
[1731854394253,0.09888358,90353.0,90331.0,0.0017112]
[1731854394254,0.110702,90332.0,90331.0,0.0017112]
[1731854396692,0.290402,90332.0,90331.0,0.0017112]
[1731854397580,0.39946455,90332.0,90331.0,0.0017112]
[1731854398468,0.54773654,90332.0,90331.0,0.0017112]
[1731854398917,0.79700277,90332.0,90331.0,0.0017112]
[1731854399181,0.21538293,90326.0,90325.0,0.0017114]
[1731854399417,0.68931077,90326.0,90325.0,0.0017114]
[1731854400074,0.93632557,90326.0,90325.0,0.0017114]
[1731854400293,0.68463784,90326.0,90325.0,0.0017114]
[1731854400541,0.11071,90326.0,90325.0,0.0017114]
[1731854400763,0.110704,90331.0,90325.0,0.1124214]
[1731854400980,0.221389,90339.0,90328.0,0.00032707]
[1731854400981,0.14820667,90339.0,90328.0,0.00032707]
[1731854401200,0.14820667,90346.0,90337.0,0.00032707]
[1731854401420,0.04395006,90346.0,90337.0,0.00032707]
[1731854401657,0.0008556,90348.0,90334.0,0.2214]
[1731854401658,0.1115386,90348.0,90342.0,0.110689]
[1731854401894,0.0008556,90348.0,90342.0,0.22138]
[1731854402106,0.0008556,90348.0,90347.0,0.110684]
[1731854402327,0.0008556,90348.0,90342.0,0.22138]
[1731854402328,0.0008556,90348.0,90346.0,0.00032707]
[1731854402752,0.0008556,90348.0,90346.0,0.11101207]
[1731854403651,0.0008556,90348.0,90347.0,0.110684]
[1731854404064,0.0008556,90348.0,90346.0,0.00032707]
[1731854404523,0.02677524,90347.0,90346.0,0.00032707]
[1731854404745,0.13745924,90347.0,90345.0,0.00032707]
[1731854404954,0.110685,90346.0,90345.0,0.00032707]
[1731854405164,0.02677524,90347.0,90345.0,0.00032707]
[1731854405398,0.12098217,90347.0,90346.0,0.00032707]
[1731854406275,0.12098217,90347.0,90333.0,0.221401]
[1731854406276,0.110689,90343.0,90342.0,0.00032707]
[1731854406486,0.15807135,90343.0,90342.0,0.00032707]
[1731854407161,0.04738235,90343.0,90342.0,0.00032707]
[1731854407395,0.03708184,90343.0,90342.0,0.27737782]
[1731854407633,0.03090299,90343.0,90342.0,0.11101707]
[1731854408103,0.01030197,90343.0,90342.0,0.11101707]
[1731854409037,0.0008556,90348.0,90342.0,0.11101707]
[1731854409263,0.16636075,90357.0,90342.0,0.11101707]
[1731854409264,0.16636075,90357.0,90346.0,0.00032707]
[1731854409517,0.110684,90347.0,90346.0,0.00032707]
[1731854409728,0.110684,90347.0,90342.0,0.0017112]
[1731854409729,0.110685,90346.0,90345.0,0.00032707]
[1731854410852,0.221365,90349.0,90342.0,0.00203827]
[1731854411093,0.110689,90343.0,90342.0,0.00203827]
[1731854413022,0.110689,90343.0,90342.0,0.0017112]
[1731854416336,0.66373117,90343.0,90342.0,0.0017112]
[1731854416551,0.7684041,90343.0,90342.0,0.0017112]
[1731854416763,0.7704041,90343.0,90342.0,0.0017112]
[1731854417238,0.7704041,90343.0,90329.0,0.16636075]
[1731854417239,0.210705,90330.0,90329.0,0.16636075]